[Event "Carnaval"]
[Site "Quebec CAN"]
[Date "2016.02.20"]
[Round "2"]
[White "Sambuev, Bator"]
[Black "Hamilton, Robert"]
[Result "1-0"]
[ECO "E14"]
[WhiteElo "2582"]
[BlackElo "2284"]
[PlyCount "87"]
[EventDate "2016.02.19"]
[EventType "swiss"]
[EventRounds "5"]
[EventCountry "CAN"]
[TimeControl "900+2"]

1. d4 Nf6 2. Nf3 e6 3. e3 b6 4. Bd3 Bb7 5. O-O Be7 6. c4 c5 7. Nc3 cxd4 8. exd4
d5 9. cxd5 Nxd5 10. Ne5 O-O 11. Qg4 f5 12. Qe2 Bf6 13. Bc4 Re8 14. Nxd5 Bxd5
15. Bf4 Nc6 16. Rfd1 Ne7 17. Bb5 Rf8 18. Ba6 Ng6 19. Nxg6 hxg6 20. Rac1 Bg5 21.
Bc7 Qe7 22. Rc3 Bf6 23. a3 g5 24. h3 Rac8 25. f4 gxf4 26. Bxf4 Rcd8 27. Bb5 Rc8
28. Kh2 Rxc3 29. bxc3 Qxa3 30. c4 Be4 31. c5 g6 32. c6 Qe7 33. Qc4 Rc8 34. c7
Bd5 35. Qc3 Bg5 36. Be5 Bf6 37. Bxf6 Qxf6 38. Ba6 Qg5 39. g3 Qh5 40. Rf1 g5 41.
g4 Qe8 42. Bxc8 Qxc8 43. gxf5 exf5 44. Rxf5 1-0

[Event "Carnaval"]
[Site "Quebec CAN"]
[Date "2016.02.20"]
[Round "3"]
[White "Zhou, Qiyu"]
[Black "Sambuev, Bator"]
[Result "0-1"]
[ECO "B01"]
[WhiteElo "2328"]
[BlackElo "2582"]
[PlyCount "84"]
[EventDate "2016.02.19"]
[EventType "swiss"]
[EventRounds "5"]
[EventCountry "CAN"]
[TimeControl "900+2"]

1. e4 d5 2. exd5 Qxd5 3. Nc3 Qa5 4. Bc4 Nf6 5. d3 c6 6. Nge2 g6 7. Bf4 Bg7 8.
Qd2 O-O 9. O-O Qb6 10. Rab1 Nbd7 11. Ng3 Qd8 12. Bh6 b5 13. Bb3 a5 14. a3 Nc5
15. Ba2 b4 16. Nce2 Qd6 17. Bxg7 Kxg7 18. Bc4 bxa3 19. bxa3 Be6 20. Bxe6 Nxe6
21. Qc3 Kg8 22. Rfe1 Rfd8 23. h3 Nd5 24. Qa1 f5 25. Nc3 Kf7 26. Nge2 Rab8 27.
Qa2 Rxb1 28. Rxb1 Nxc3 29. Nxc3 Kf6 30. Rb6 Nd4 31. Nd1 Qc5 32. Qb2 Kf7 33. Ne3
f4 34. Nc4 f3 35. Rb8 Ne2+ 36. Kf1 fxg2+ 37. Kxg2 Nf4+ 38. Kf1 Qh5 39. Ne3
Qxh3+ 40. Ke1 Qf3 41. Qb3+ Rd5 42. Kd2 Qxf2+ 0-1

[Event "Excelsior March op"]
[Site "Toronto CAN"]
[Date "2024.03.15"]
[Round "1.2"]
[White "Sambuev, Bator"]
[Black "Loadman, Ian"]
[Result "1-0"]
[ECO "E73"]
[WhiteElo "2465"]
[BlackElo "1932"]
[PlyCount "57"]
[EventDate "2024.03.15"]
[EventType "swiss"]
[EventRounds "5"]
[EventCountry "CAN"]
[TimeControl "90+30"]

1. d4 {[%emt 0:00:00]} Nf6 {[%emt 0:00:00]} 2. c4 {[%emt 0:00:00]} g6 {
[%emt 0:00:00]} 3. Nc3 {[%emt 0:00:00]} Bg7 {[%emt 0:00:00]} 4. e4 {
[%emt 0:00:00]} d6 {[%emt 0:00:00]} 5. Be2 {[%emt 0:00:00]} O-O {[%emt 0:00:00]
} 6. h4 {[%emt 0:00:00]} c5 {[%emt 0:00:00]} 7. d5 {[%emt 0:00:00]} e6 {
[%emt 0:00:00]} 8. h5 {[%emt 0:00:00]} exd5 {[%emt 0:00:00]} 9. h6 {
[%emt 0:00:00]} Bh8 {[%emt 0:00:00]} 10. exd5 {[%emt 0:00:00]} Re8 {
[%emt 0:00:00]} 11. Bg5 {[%emt 0:00:00]} Qb6 {[%emt 0:00:00]} 12. b3 {
[%emt 0:00:00]} Ne4 {[%emt 0:00:00]} 13. Nxe4 {[%emt 0:00:00]} Rxe4 {
[%emt 0:00:00]} 14. Kf1 {[%emt 0:00:00]} Re8 {[%emt 0:00:00]} 15. Bd3 {
[%emt 0:00:00]} Nd7 {[%emt 0:00:00]} 16. Rc1 {[%emt 0:00:00]} Nf6 {
[%emt 0:00:00]} 17. Rh4 {[%emt 0:00:00]} Re5 {[%emt 0:00:00]} 18. Nf3 {
[%emt 0:00:00]} Rxg5 {[%emt 0:00:00]} 19. Nxg5 {[%emt 0:00:00]} Bd7 {
[%emt 0:00:00]} 20. Qf3 {[%emt 0:00:00]} Re8 {[%emt 0:00:00]} 21. Re4 {
[%emt 0:00:00]} Rxe4 {[%emt 0:00:00]} 22. Bxe4 {[%emt 0:00:00]} Qd8 {
[%emt 0:00:00]} 23. b4 {[%emt 0:00:00]} cxb4 {[%emt 0:00:00]} 24. c5 {
[%emt 0:00:00]} dxc5 {[%emt 0:00:00]} 25. Rxc5 {[%emt 0:00:00]} Qe7 {
[%emt 0:00:00]} 26. d6 {[%emt 0:00:00]} Qxd6 {[%emt 0:00:00]} 27. Qb3 {
[%emt 0:00:00]} Qf8 {[%emt 0:00:00]} 28. Bxb7 {[%emt 0:00:00]} Ne8 {
[%emt 0:07:54]} 29. Nxf7 {[%emt 0:00:00]} 1-0

[Event "Excelsior March op"]
[Site "Toronto CAN"]
[Date "2024.03.16"]
[Round "2.2"]
[White "Zhu, Matthew"]
[Black "Sambuev, Bator"]
[Result "0-1"]
[ECO "C79"]
[WhiteElo "2098"]
[BlackElo "2465"]
[PlyCount "69"]
[EventDate "2024.03.15"]
[EventType "swiss"]
[EventRounds "5"]
[EventCountry "CAN"]
[TimeControl "90+30"]

1. e4 {[%emt 0:00:00]} e5 {[%emt 0:00:00]} 2. Nf3 {[%emt 0:00:00]} Nc6 {
[%emt 0:00:00]} 3. Bb5 {[%emt 0:00:00]} a6 {[%emt 0:00:00]} 4. Ba4 {
[%emt 0:00:00]} Nf6 {[%emt 0:00:00]} 5. O-O {[%emt 0:00:00]} d6 {[%emt 0:00:00]
} 6. c4 {[%emt 0:00:00]} Bg4 {[%emt 0:00:00]} 7. d3 {[%emt 0:00:00]} g6 {
[%emt 0:00:00]} 8. h3 {[%emt 0:00:00]} Bxf3 {[%emt 0:00:00]} 9. Qxf3 {
[%emt 0:00:00]} Nd7 {[%emt 0:00:00]} 10. Be3 {[%emt 0:00:00]} Bg7 {
[%emt 0:00:00]} 11. Nc3 {[%emt 0:00:00]} O-O {[%emt 0:00:00]} 12. Bxc6 {
[%emt 0:00:00]} bxc6 {[%emt 0:00:00]} 13. b4 {[%emt 0:00:00]} f5 {
[%emt 0:00:00]} 14. a4 {[%emt 0:00:00]} Kh8 {[%emt 0:00:00]} 15. b5 {
[%emt 0:00:00]} axb5 {[%emt 0:00:00]} 16. axb5 {[%emt 0:00:00]} cxb5 {
[%emt 0:00:00]} 17. cxb5 {[%emt 0:00:00]} f4 {[%emt 0:00:00]} 18. Ba7 {
[%emt 0:00:00]} Qc8 {[%emt 0:00:00]} 19. Ra6 {[%emt 0:00:00]} Qb7 {
[%emt 0:00:00]} 20. Rfa1 {[%emt 0:00:00]} Nf6 {[%emt 0:00:00]} 21. d4 {
[%emt 0:00:00]} Nd7 {[%emt 0:00:00]} 22. Qd3 {[%emt 0:00:00]} f3 {
[%emt 0:00:00]} 23. g3 {[%emt 0:03:45]} Rae8 {[%emt 0:00:00]} 24. Nd5 {
[%emt 0:01:26]} Nf6 {[%emt 0:00:00]} 25. Nxf6 {[%emt 0:02:56]} Bxf6 {
[%emt 0:00:00]} 26. d5 {[%emt 0:01:30]} Bg5 {[%emt 0:00:00]} 27. b6 {
[%emt 0:03:16]} cxb6 {[%emt 0:00:00]} 28. Bxb6 {[%emt 0:00:37]} Rc8 {
[%emt 0:00:00]} 29. Be3 {[%emt 0:01:11]} Bxe3 {[%emt 0:00:00]} 30. Qxe3 {
[%emt 0:00:01]} Qd7 {[%emt 0:00:00]} 31. Qh6 {[%emt 0:00:40]} Rf7 {
[%emt 0:00:00]} 32. Kh2 {[%emt 0:01:35]} Kg8 {[%emt 0:00:00]} 33. h4 {
[%emt 0:00:31]} Qg4 {[%emt 0:00:00]} 34. Ra7 {[%emt 0:00:27]} Qh5 {
[%emt 0:00:00]} 35. Qe3 {[%emt 0:01:05]} 0-1

[Event "Excelsior March op"]
[Site "Toronto CAN"]
[Date "2024.03.16"]
[Round "3.2"]
[White "Sambuev, Bator"]
[Black "Stevens, Christian"]
[Result "1-0"]
[ECO "D12"]
[WhiteElo "2465"]
[BlackElo "2354"]
[PlyCount "95"]
[EventDate "2024.03.15"]
[EventType "swiss"]
[EventRounds "5"]
[EventCountry "CAN"]
[TimeControl "90+30"]

1. d4 {[%emt 0:00:00]} Nf6 {[%emt 0:00:00]} 2. Nf3 {[%emt 0:00:00]} d5 {
[%emt 0:00:00]} 3. e3 {[%emt 0:00:00]} Bf5 {[%emt 0:00:00]} 4. c4 {
[%emt 0:00:00]} c6 {[%emt 0:00:00]} 5. Nc3 {[%emt 0:00:00]} e6 {[%emt 0:00:00]}
6. Nh4 {[%emt 0:00:00]} Bg6 {[%emt 0:00:00]} 7. Be2 {[%emt 0:00:00]} Nbd7 {
[%emt 0:00:00]} 8. O-O {[%emt 0:00:00]} Ng8 {[%emt 0:00:00]} 9. g3 {
[%emt 0:00:00]} Be7 {[%emt 0:00:00]} 10. Nxg6 {[%emt 0:00:00]} hxg6 {
[%emt 0:00:00]} 11. Qb3 {[%emt 0:00:00]} Qb6 {[%emt 0:00:00]} 12. c5 {
[%emt 0:00:00]} Qxb3 {[%emt 0:00:00]} 13. axb3 {[%emt 0:00:00]} a6 {
[%emt 0:00:00]} 14. b4 {[%emt 0:00:00]} Rc8 {[%emt 0:00:00]} 15. f3 {
[%emt 0:00:00]} e5 {[%emt 0:00:00]} 16. g4 {[%emt 0:00:00]} exd4 {
[%emt 0:00:00]} 17. exd4 {[%emt 0:00:00]} Bf6 {[%emt 0:00:00]} 18. Rd1 {
[%emt 0:00:00]} g5 {[%emt 0:00:00]} 19. b5 {[%emt 0:00:00]} axb5 {
[%emt 0:00:00]} 20. Ra7 {[%emt 0:00:00]} Rb8 {[%emt 0:00:00]} 21. f4 {
[%emt 0:00:00]} Bd8 {[%emt 0:00:00]} 22. fxg5 {[%emt 0:00:00]} Bc7 {
[%emt 0:00:00]} 23. Bxb5 {[%emt 0:00:00]} Ne7 {[%emt 0:00:00]} 24. Ba6 {
[%emt 0:00:00]} Bxh2+ {[%emt 0:00:00]} 25. Kg2 {[%emt 0:00:00]} bxa6 {
[%emt 0:00:00]} 26. Rh1 {[%emt 0:00:00]} Ng6 {[%emt 0:00:00]} 27. Rxh2 {
[%emt 0:00:00]} Rxh2+ {[%emt 0:00:00]} 28. Kxh2 {[%emt 0:00:00]} Rb4 {
[%emt 0:00:00]} 29. Rxa6 {[%emt 0:00:00]} Rxd4 {[%emt 0:00:00]} 30. Rxc6 {
[%emt 0:00:00]} Ne7 {[%emt 0:00:00]} 31. Rd6 {[%emt 0:00:00]} Rc4 {
[%emt 0:00:00]} 32. Be3 {[%emt 0:00:00]} Nxc5 {[%emt 0:00:00]} 33. Bxc5 {
[%emt 0:00:53]} Rxc5 {[%emt 0:00:00]} 34. Kg3 {[%emt 0:00:06]} Rc4 {
[%emt 0:00:00]} 35. Nxd5 {[%emt 0:04:16]} Nxd5 {[%emt 0:00:00]} 36. Rxd5 {
[%emt 0:00:44]} Rb4 {[%emt 0:00:00]} 37. Rd2 {[%emt 0:00:14]} g6 {
[%emt 0:00:00]} 38. Kf3 {[%emt 0:00:21]} Kf8 {[%emt 0:00:00]} 39. Rg2 {
[%emt 0:00:23]} Kg7 {[%emt 0:00:00]} 40. Ke3 {[%emt 0:01:14]} Rb5 {
[%emt 0:00:00]} 41. Kd4 {[%emt 0:02:49]} Rxg5 {[%emt 0:00:00]} 42. b4 {
[%emt 0:00:07]} Kf6 {[%emt 0:00:00]} 43. Kc4 {[%emt 0:04:13]} Ke6 {
[%emt 0:00:00]} 44. b5 {[%emt 0:00:36]} Kd6 {[%emt 0:00:00]} 45. Kb4 {
[%emt 0:00:58]} Kc7 {[%emt 0:00:00]} 46. Ka5 {[%emt 0:00:11]} Kb7 {
[%emt 0:00:00]} 47. Re2 {[%emt 0:00:45]} Rc5 {[%emt 0:00:00]} 48. Re7+ {
[%emt 0:00:23]} 1-0